[Event "*** SCC Grand Prix: Titled Tuesday Blitz"]
[Site "Chess.com"]
[Date "2020.06.02"]
[Round "7"]
[White "kingnb"]
[Black "Msb2"]
[Result "0-1"]
[WhiteElo "2575"]
[BlackElo "2848"]
[TimeControl "180+1"]
[EndTime "11:21:45 PDT"]
[Termination "Msb2 won on time"]

1. e4 {[%clk 0:03:00.9]} 1... e6 {[%clk 0:03:00.2]} 2. d4 {[%clk 0:02:58.6]}
2... d5 {[%clk 0:03:00.8]} 3. Nd2 {[%clk 0:02:59.2]} 3... c5 {[%clk 0:03:00.5]}
4. exd5 {[%clk 0:02:56.2]} 4... Qxd5 {[%clk 0:03:01.4]} 5. Ngf3 {[%clk
0:02:56.8]} 5... cxd4 {[%clk 0:03:01.7]} 6. Bc4 {[%clk 0:02:57.4]} 6... Qd7
{[%clk 0:03:02.3]} 7. O-O {[%clk 0:02:57.3]} 7... Nc6 {[%clk 0:03:02.9]} 8. Nb3
{[%clk 0:02:57.3]} 8... a6 {[%clk 0:03:03.4]} 9. Nbxd4 {[%clk 0:02:57.1]} 9...
Nxd4 {[%clk 0:03:04.3]} 10. Qxd4 {[%clk 0:02:57.3]} 10... Qxd4 {[%clk
0:03:04.5]} 11. Nxd4 {[%clk 0:02:58.2]} 11... Nf6 {[%clk 0:03:05.4]} 12. c3
{[%clk 0:02:58.6]} 12... b5 {[%clk 0:03:03]} 13. Be2 {[%clk 0:02:57.1]} 13...
Bb7 {[%clk 0:03:03.6]} 14. Bf3 {[%clk 0:02:57.3]} 14... Bxf3 {[%clk 0:03:03.2]}
15. Nxf3 {[%clk 0:02:58.2]} 15... Be7 {[%clk 0:03:01.7]} 16. Rd1 {[%clk
0:02:56.5]} 16... O-O {[%clk 0:03:01.3]} 17. Bg5 {[%clk 0:02:57]} 17... Rfc8
{[%clk 0:02:38.1]} 18. Kf1 {[%clk 0:02:55.2]} 18... h6 {[%clk 0:02:32.6]} 19.
Bxf6 {[%clk 0:02:50.6]} 19... Bxf6 {[%clk 0:02:33.5]} 20. a3 {[%clk 0:02:48.6]}
20... a5 {[%clk 0:02:33.4]} 21. Rd2 {[%clk 0:02:43.1]} 21... Rab8 {[%clk
0:02:29.2]} 22. Rad1 {[%clk 0:02:27.9]} 22... b4 {[%clk 0:02:27.8]} 23. cxb4
{[%clk 0:02:01.7]} 23... axb4 {[%clk 0:02:28.7]} 24. axb4 {[%clk 0:02:02.2]}
24... Rxb4 {[%clk 0:02:28.3]} 25. Rb1 {[%clk 0:02:02.8]} 25... Rcb8 {[%clk
0:02:28]} 26. Ne1 {[%clk 0:02:00.9]} 26... Rxb2 {[%clk 0:02:09.7]} 27. Rdxb2
{[%clk 0:02:00.6]} 27... Rxb2 {[%clk 0:02:09.6]} 28. Rxb2 {[%clk 0:02:01]} 28...
Bxb2 {[%clk 0:02:10.5]} 29. Ke2 {[%clk 0:02:01.4]} 29... Kf8 {[%clk 0:02:09.4]}
30. Nc2 {[%clk 0:02:00.8]} 30... Ke7 {[%clk 0:02:09.1]} 31. Kd3 {[%clk
0:02:00.9]} 31... Kd6 {[%clk 0:02:09]} 32. Ne3 {[%clk 0:02:01.2]} 32... Kc5
{[%clk 0:02:05.6]} 33. Nc2 {[%clk 0:01:55.1]} 33... h5 {[%clk 0:02:02.7]} 34.
Ne1 {[%clk 0:01:51.2]} 34... Bd4 {[%clk 0:01:59.5]} 35. Ke2 {[%clk 0:01:47.6]}
35... Kd5 {[%clk 0:01:56.9]} 36. Nf3 {[%clk 0:01:46.9]} 36... e5 {[%clk
0:01:54]} 37. Nd2 {[%clk 0:01:36.3]} 37... f5 {[%clk 0:01:49.5]} 38. f3 {[%clk
0:01:29.5]} 38... Bg1 {[%clk 0:01:49.1]} 39. Nf1 {[%clk 0:01:23.8]} 39... g6
{[%clk 0:01:42.3]} 40. Kd3 {[%clk 0:01:18.9]} 40... h4 {[%clk 0:01:37.2]} 41. h3
{[%clk 0:01:12.2]} 41... Bb6 {[%clk 0:01:30.4]} 42. Nd2 {[%clk 0:01:08.9]} 42...
Bd8 {[%clk 0:01:30]} 43. Nb1 {[%clk 0:00:35.6]} 43... Ba5 {[%clk 0:01:23.7]} 44.
Na3 {[%clk 0:00:35.1]} 44... Bb4 {[%clk 0:01:24]} 45. Nc2 {[%clk 0:00:33.2]}
45... Bc5 {[%clk 0:01:23.9]} 46. Na1 {[%clk 0:00:33.2]} 46... Ke6 {[%clk
0:01:14.3]} 47. Nb3 {[%clk 0:00:29.2]} 47... Bb6 {[%clk 0:01:14.3]} 48. Nd2
{[%clk 0:00:27.4]} 48... Kf6 {[%clk 0:01:13.1]} 49. Kc4 {[%clk 0:00:21.9]} 49...
Kg5 {[%clk 0:01:10]} 50. Kd3 {[%clk 0:00:19]} 50... Kf4 {[%clk 0:01:10.1]} 51.
Nf1 {[%clk 0:00:19.4]} 51... Ba5 {[%clk 0:01:02.4]} 52. Ke2 {[%clk 0:00:19.5]}
52... Bb6 {[%clk 0:01:00.5]} 53. Kd3 {[%clk 0:00:19.4]} 53... Bc5 {[%clk
0:00:58.9]} 54. Ke2 {[%clk 0:00:19.7]} 54... Ba3 {[%clk 0:00:33.5]} 55. Kd3
{[%clk 0:00:19.8]} 55... e4+ {[%clk 0:00:23.5]} 56. fxe4 {[%clk 0:00:20.7]}
56... fxe4+ {[%clk 0:00:24.3]} 57. Ke2 {[%clk 0:00:21.4]} 57... Bc5 {[%clk
0:00:25]} 58. Kd1 {[%clk 0:00:21.4]} 58... Bd6 {[%clk 0:00:18.6]} 59. Ke2 {[%clk
0:00:22.3]} 59... Be5 {[%clk 0:00:17.4]} 60. Kd1 {[%clk 0:00:22.6]} 60... Kf5
{[%clk 0:00:16.5]} 61. Ke2 {[%clk 0:00:23.2]} 61... Bf4 {[%clk 0:00:16.6]} 62.
Kd1 {[%clk 0:00:23.4]} 62... Ke5 {[%clk 0:00:16.8]} 63. Ke2 {[%clk 0:00:22.2]}
63... Kd4 {[%clk 0:00:17.4]} 64. Kd1 {[%clk 0:00:02.4]} 64... Kd3 {[%clk
0:00:17.7]} 65. Ke1 {[%clk 0:00:02.7]} 65... Bg3+ {[%clk 0:00:16.9]} 0-1

[Event "*** SCC Grand Prix: Titled Tuesday Blitz"]
[Site "Chess.com"]
[Date "2020.06.02"]
[Round "7"]
[White "dolynachess"]
[Black "Konovalova_Vera"]
[Result "1-0"]
[WhiteElo "2340"]
[BlackElo "2144"]
[TimeControl "180+1"]
[EndTime "11:21:45 PDT"]
[Termination "dolynachess won on time"]

1. d4 {[%clk 0:03:00.9]} 1... Nf6 {[%clk 0:02:58.7]} 2. c4 {[%clk 0:03:01.3]}
2... e6 {[%clk 0:02:58.8]} 3. g3 {[%clk 0:03:01.1]} 3... Bb4+ {[%clk 0:02:58.3]}
4. Nd2 {[%clk 0:03:01.5]} 4... c5 {[%clk 0:02:57]} 5. Nf3 {[%clk 0:03:00.3]}
5... O-O {[%clk 0:02:55]} 6. Bg2 {[%clk 0:03:00.1]} 6... Nc6 {[%clk 0:02:54.5]}
7. a3 {[%clk 0:02:55.2]} 7... Bxd2+ {[%clk 0:02:51.6]} 8. Qxd2 {[%clk
0:02:54.8]} 8... cxd4 {[%clk 0:02:43.5]} 9. Nxd4 {[%clk 0:02:55.7]} 9... Nxd4
{[%clk 0:02:41.6]} 10. Qxd4 {[%clk 0:02:55.3]} 10... d5 {[%clk 0:02:31.8]} 11.
O-O {[%clk 0:02:52.3]} 11... dxc4 {[%clk 0:02:12]} 12. Qxc4 {[%clk 0:02:50.7]}
12... Bd7 {[%clk 0:02:06.3]} 13. Bxb7 {[%clk 0:02:45.9]} 13... Rb8 {[%clk
0:02:05.5]} 14. Bf3 {[%clk 0:02:41.8]} 14... Bb5 {[%clk 0:02:01.7]} 15. Qh4
{[%clk 0:02:41.1]} 15... Qb6 {[%clk 0:01:52.9]} 16. Be3 {[%clk 0:02:34.9]} 16...
Qa6 {[%clk 0:01:51.7]} 17. Rfe1 {[%clk 0:02:29.5]} 17... Nd5 {[%clk 0:01:46.1]}
18. Bd4 {[%clk 0:02:22.1]} 18... Rfc8 {[%clk 0:01:34.5]} 19. e4 {[%clk
0:02:10.2]} 19... Nc7 {[%clk 0:01:28.4]} 20. Qg5 {[%clk 0:01:55.6]} 20... Ne8
{[%clk 0:01:28]} 21. Rac1 {[%clk 0:01:43.1]} 21... f6 {[%clk 0:01:15.5]} 22. Qe3
{[%clk 0:01:36.8]} 22... e5 {[%clk 0:01:12]} 23. Bxa7 {[%clk 0:01:30.5]} 23...
Rxc1 {[%clk 0:01:10]} 24. Rxc1 {[%clk 0:01:29.9]} 24... Rd8 {[%clk 0:01:07.2]}
25. Qb6 {[%clk 0:01:09.7]} 25... Qxb6 {[%clk 0:00:54.6]} 26. Bxb6 {[%clk
0:01:09.5]} 26... Rd2 {[%clk 0:00:53.9]} 27. b3 {[%clk 0:00:59]} 27... Rd3
{[%clk 0:00:46.3]} 28. Be2 {[%clk 0:00:26]} 28... Rxb3 {[%clk 0:00:43]} 29. Bxb5
{[%clk 0:00:25.9]} 29... Rxb5 {[%clk 0:00:42.7]} 30. Bc5 {[%clk 0:00:26.4]}
30... Kf7 {[%clk 0:00:37.6]} 31. Bb4 {[%clk 0:00:24.6]} 31... Rb7 {[%clk
0:00:29]} 32. Rc6 {[%clk 0:00:22.4]} 32... Nc7 {[%clk 0:00:27.4]} 33. Kg2 {[%clk
0:00:20.3]} 33... Nb5 {[%clk 0:00:26.5]} 34. h4 {[%clk 0:00:16.5]} 34... Nd4
{[%clk 0:00:24.3]} 35. Rc3 {[%clk 0:00:14.3]} 35... Ra7 {[%clk 0:00:20.2]} 36.
Rd3 {[%clk 0:00:13.3]} 36... Nb5 {[%clk 0:00:19.2]} 37. Kf3 {[%clk 0:00:12]}
37... Nd4+ {[%clk 0:00:18.7]} 38. Kg4 {[%clk 0:00:10.6]} 38... Nc2 {[%clk
0:00:18.9]} 39. Rb3 {[%clk 0:00:08.9]} 39... Rb7 {[%clk 0:00:18]} 40. Rb2 {[%clk
0:00:07.8]} 40... Nd4 {[%clk 0:00:16.9]} 41. Bc3 {[%clk 0:00:08]} 41... Rxb2
{[%clk 0:00:14.2]} 42. Bxb2 {[%clk 0:00:08.1]} 42... Nc6 {[%clk 0:00:13.8]} 43.
Kf3 {[%clk 0:00:07.1]} 43... Ke6 {[%clk 0:00:12.8]} 44. Ke3 {[%clk 0:00:07.3]}
44... Na5 {[%clk 0:00:12.9]} 45. Kd3 {[%clk 0:00:06.7]} 45... Kd6 {[%clk
0:00:13.2]} 46. Bc3 {[%clk 0:00:07]} 46... Nb3 {[%clk 0:00:12.1]} 47. Kc4 {[%clk
0:00:07.7]} 47... Nc1 {[%clk 0:00:10.9]} 48. a4 {[%clk 0:00:06.9]} 48... Kc6
{[%clk 0:00:10.6]} 49. a5 {[%clk 0:00:06.3]} 49... g6 {[%clk 0:00:09.4]} 50. f4
{[%clk 0:00:04.3]} 50... exf4 {[%clk 0:00:08.5]} 51. gxf4 {[%clk 0:00:05.2]}
51... f5 {[%clk 0:00:08.6]} 52. e5 {[%clk 0:00:04.6]} 52... Ne2 {[%clk
0:00:07.8]} 53. Bd2 {[%clk 0:00:04.4]} 53... Ng3 {[%clk 0:00:06.2]} 54. a6
{[%clk 0:00:05]} 54... Kb6 {[%clk 0:00:05.8]} 55. e6 {[%clk 0:00:04.5]} 55...
Ne4 {[%clk 0:00:05.9]} 56. Be3+ {[%clk 0:00:04]} 56... Kxa6 {[%clk 0:00:05.4]}
57. e7 {[%clk 0:00:04.9]} 57... Kb7 {[%clk 0:00:05.1]} 58. Kd5 {[%clk
0:00:05.5]} 58... Kc7 {[%clk 0:00:04]} 59. Ke6 {[%clk 0:00:05.5]} 59... Nd6
{[%clk 0:00:02.8]} 60. Bc5 {[%clk 0:00:05.4]} 60... Ne8 {[%clk 0:00:02.5]} 61.
Kf7 {[%clk 0:00:05.4]} 61... Kd7 {[%clk 0:00:02.8]} 62. Kf8 {[%clk 0:00:05.8]}
62... Nc7 {[%clk 0:00:02.5]} 63. Ba3 {[%clk 0:00:05.2]} 63... Ne8 {[%clk
0:00:02.1]} 64. Bb2 {[%clk 0:00:05.3]} 64... Nd6 {[%clk 0:00:01.6]} 65. Be5
{[%clk 0:00:06.2]} 65... Ne8 {[%clk 0:00:01.8]} 66. Kf7 {[%clk 0:00:06]} 1-0

[Event "*** SCC Grand Prix: Titled Tuesday Blitz"]
[Site "Chess.com"]
[Date "2020.06.02"]
[Round "7"]
[White "GM_Buhmann"]
[Black "valeriocarnicelli"]
[Result "1/2-1/2"]
[WhiteElo "2815"]
[BlackElo "2607"]
[TimeControl "180+1"]
[EndTime "11:21:50 PDT"]
[Termination "Game drawn - insufficient material"]

1. e4 {[%clk 0:03:00.9]} 1... e5 {[%clk 0:02:50.4]} 2. Nf3 {[%clk 0:02:56.7]}
2... Nc6 {[%clk 0:02:39.2]} 3. Bb5 {[%clk 0:02:55.5]} 3... f5 {[%clk 0:02:39.3]}
4. d3 {[%clk 0:02:53.8]} 4... fxe4 {[%clk 0:02:39.7]} 5. dxe4 {[%clk 0:02:54.2]}
5... Nf6 {[%clk 0:02:40.4]} 6. O-O {[%clk 0:02:46.8]} 6... Bc5 {[%clk 0:02:40]}
7. Qd3 {[%clk 0:02:43]} 7... d6 {[%clk 0:02:40.1]} 8. Nc3 {[%clk 0:02:20.7]}
8... O-O {[%clk 0:02:39.7]} 9. Bg5 {[%clk 0:02:15.4]} 9... Be6 {[%clk
0:02:32.6]} 10. Bc4 {[%clk 0:02:11.8]} 10... Bxc4 {[%clk 0:02:10]} 11. Qxc4+
{[%clk 0:02:11.1]} 11... Kh8 {[%clk 0:02:10.5]} 12. Nd5 {[%clk 0:02:09.8]} 12...
Ne7 {[%clk 0:02:02.1]} 13. Bxf6 {[%clk 0:02:07.8]} 13... gxf6 {[%clk 0:02:03]}
14. Nxe7 {[%clk 0:02:00.4]} 14... Qxe7 {[%clk 0:02:02.5]} 15. Nh4 {[%clk
0:02:00.3]} 15... Qf7 {[%clk 0:01:58.9]} 16. Qxf7 {[%clk 0:01:57.5]} 16... Rxf7
{[%clk 0:01:59.8]} 17. g3 {[%clk 0:01:56.6]} 17... Kg7 {[%clk 0:01:49.9]} 18.
Rad1 {[%clk 0:01:54.3]} 18... Kf8 {[%clk 0:01:48]} 19. Nf5 {[%clk 0:01:51.5]}
19... Ke8 {[%clk 0:01:47]} 20. Kg2 {[%clk 0:01:48.3]} 20... Kd7 {[%clk
0:01:45.7]} 21. Rd3 {[%clk 0:01:44.9]} 21... Rd8 {[%clk 0:01:42.7]} 22. Rfd1
{[%clk 0:01:44.5]} 22... a5 {[%clk 0:01:41.4]} 23. a4 {[%clk 0:01:43.6]} 23...
Kc6 {[%clk 0:01:40.9]} 24. Kf3 {[%clk 0:01:36]} 24... Rfd7 {[%clk 0:01:40]} 25.
h4 {[%clk 0:01:16.9]} 25... Kb6 {[%clk 0:01:40]} 26. Rb3+ {[%clk 0:01:15.7]}
26... Kc6 {[%clk 0:01:39.4]} 27. Rc3 {[%clk 0:01:13]} 27... Kb6 {[%clk
0:01:39.1]} 28. Rcd3 {[%clk 0:01:09.7]} 28... c6 {[%clk 0:01:38.7]} 29. R1d2
{[%clk 0:01:00.1]} 29... Kc7 {[%clk 0:01:37.8]} 30. Kg4 {[%clk 0:00:59.6]} 30...
d5 {[%clk 0:01:37.5]} 31. f3 {[%clk 0:00:58.8]} 31... d4 {[%clk 0:01:25.9]} 32.
Kh5 {[%clk 0:00:58.3]} 32... Bf8 {[%clk 0:01:20.1]} 33. g4 {[%clk 0:00:55]}
33... c5 {[%clk 0:01:19.8]} 34. b3 {[%clk 0:00:55.5]} 34... Kc6 {[%clk
0:01:16.9]} 35. g5 {[%clk 0:00:54.7]} 35... fxg5 {[%clk 0:01:16.6]} 36. hxg5
{[%clk 0:00:55.6]} 36... b5 {[%clk 0:01:16.9]} 37. axb5+ {[%clk 0:00:55]} 37...
Kxb5 {[%clk 0:01:17.8]} 38. c4+ {[%clk 0:00:55.1]} 38... dxc3 {[%clk 0:01:08]}
39. Rxd7 {[%clk 0:00:54.9]} 39... Rxd7 {[%clk 0:01:08.2]} 40. Rxd7 {[%clk
0:00:47]} 40... c2 {[%clk 0:01:08.1]} 41. Rb7+ {[%clk 0:00:47.3]} 41... Kc6
{[%clk 0:01:04.1]} 42. Rf7 {[%clk 0:00:47.2]} 42... c1=Q {[%clk 0:00:53.6]} 43.
Rxf8 {[%clk 0:00:47]} 43... Qc3 {[%clk 0:00:42.8]} 44. Ne7+ {[%clk 0:00:43.3]}
44... Kb7 {[%clk 0:00:32.2]} 45. Nd5 {[%clk 0:00:43.6]} 45... Qxb3 {[%clk
0:00:25.9]} 46. Kh6 {[%clk 0:00:42.8]} 46... c4 {[%clk 0:00:20.6]} 47. Kxh7
{[%clk 0:00:41.3]} 47... c3 {[%clk 0:00:20.4]} 48. g6 {[%clk 0:00:40.7]} 48...
c2 {[%clk 0:00:20]} 49. Rf7+ {[%clk 0:00:40.3]} 49... Ka6 {[%clk 0:00:17.9]} 50.
Rc7 {[%clk 0:00:40.3]} 50... Qxf3 {[%clk 0:00:08.3]} 51. Rxc2 {[%clk 0:00:40.3]}
51... Qxe4 {[%clk 0:00:07.9]} 52. Rc6+ {[%clk 0:00:39.7]} 52... Kb7 {[%clk
0:00:06.8]} 53. Rd6 {[%clk 0:00:38]} 53... a4 {[%clk 0:00:06.1]} 54. Nc3 {[%clk
0:00:28.9]} 54... Qh4+ {[%clk 0:00:05.9]} 55. Kg8 {[%clk 0:00:28.6]} 55... Qe7
{[%clk 0:00:05.7]} 56. Rb6+ {[%clk 0:00:27.5]} 56... Ka7 {[%clk 0:00:06.1]} 57.
Nxa4 {[%clk 0:00:22.2]} 57... Qe8+ {[%clk 0:00:05.8]} 58. Kg7 {[%clk 0:00:22.4]}
58... Qxa4 {[%clk 0:00:05.9]} 59. Re6 {[%clk 0:00:22.9]} 59... Qd7+ {[%clk
0:00:04.5]} 60. Kf6 {[%clk 0:00:23]} 60... Qd8+ {[%clk 0:00:03.1]} 61. Re7+
{[%clk 0:00:23.1]} 61... Kb6 {[%clk 0:00:02.4]} 62. g7 {[%clk 0:00:23.4]} 62...
Kc5 {[%clk 0:00:02.5]} 63. Kf7 {[%clk 0:00:23.8]} 63... e4 {[%clk 0:00:02.2]}
64. g8=Q {[%clk 0:00:20.6]} 64... Qxg8+ {[%clk 0:00:02.4]} 65. Kxg8 {[%clk
0:00:21.5]} 65... Kd4 {[%clk 0:00:02.5]} 66. Kf7 {[%clk 0:00:22]} 66... e3
{[%clk 0:00:02.9]} 67. Kf6 {[%clk 0:00:22.5]} 67... Kd3 {[%clk 0:00:03.4]} 68.
Kf5 {[%clk 0:00:23.1]} 68... e2 {[%clk 0:00:03.8]} 69. Kf4 {[%clk 0:00:22.7]}
69... Kd2 {[%clk 0:00:04]} 70. Rd7+ {[%clk 0:00:23.3]} 70... Kc1 {[%clk
0:00:03.8]} 71. Re7 {[%clk 0:00:23.8]} 71... Kd1 {[%clk 0:00:04]} 72. Rd7+
{[%clk 0:00:24.1]} 72... Kc1 {[%clk 0:00:04]} 73. Re7 {[%clk 0:00:24.6]} 73...
Kd1 {[%clk 0:00:04.1]} 74. Rxe2 {[%clk 0:00:25.1]} 74... Kxe2 {[%clk 0:00:04.1]}
1/2-1/2

[Event "*** SCC Grand Prix: Titled Tuesday Blitz"]
[Site "Chess.com"]
[Date "2020.06.02"]
[Round "7"]
[White "InitiatingASC"]
[Black "vinniethepooh"]
[Result "0-1"]
[WhiteElo "2406"]
[BlackElo "2590"]
[TimeControl "180+1"]
[EndTime "11:21:51 PDT"]
[Termination "vinniethepooh won on time"]

1. Nf3 {[%clk 0:03:00.9]} 1... d5 {[%clk 0:03:00.1]} 2. b3 {[%clk 0:03:01.5]}
2... Nf6 {[%clk 0:03:00.2]} 3. Bb2 {[%clk 0:03:02.2]} 3... Bf5 {[%clk
0:03:00.6]} 4. e3 {[%clk 0:03:02.8]} 4... e6 {[%clk 0:03:01.1]} 5. c4 {[%clk
0:03:02.5]} 5... h6 {[%clk 0:03:01.4]} 6. cxd5 {[%clk 0:03:02.6]} 6... exd5
{[%clk 0:03:01.6]} 7. Be2 {[%clk 0:03:02.7]} 7... Be7 {[%clk 0:03:01.1]} 8. O-O
{[%clk 0:03:02.7]} 8... O-O {[%clk 0:03:01.7]} 9. d3 {[%clk 0:03:03.3]} 9...
Nbd7 {[%clk 0:03:00.7]} 10. Nbd2 {[%clk 0:03:03.8]} 10... Bh7 {[%clk 0:03:00.1]}
11. Rc1 {[%clk 0:03:03.4]} 11... c6 {[%clk 0:02:59.7]} 12. Qc2 {[%clk
0:03:03.7]} 12... Re8 {[%clk 0:02:59.5]} 13. Qb1 {[%clk 0:03:03.6]} 13... Bd6
{[%clk 0:02:58.7]} 14. Qa1 {[%clk 0:02:58.5]} 14... Qe7 {[%clk 0:02:57.1]} 15.
Rfe1 {[%clk 0:02:58.4]} 15... Nc5 {[%clk 0:02:55.4]} 16. Bxf6 {[%clk 0:02:43.8]}
16... gxf6 {[%clk 0:02:47.6]} 17. d4 {[%clk 0:02:43.8]} 17... Ne4 {[%clk
0:02:44.1]} 18. Nxe4 {[%clk 0:02:42.6]} 18... Bxe4 {[%clk 0:02:42.7]} 19. Nd2
{[%clk 0:02:40.7]} 19... Bg6 {[%clk 0:02:19.7]} 20. Nf1 {[%clk 0:02:33]} 20...
Kh7 {[%clk 0:02:11.5]} 21. Ng3 {[%clk 0:02:23.8]} 21... Qe6 {[%clk 0:01:57.9]}
22. Bh5 {[%clk 0:02:14.1]} 22... Rg8 {[%clk 0:01:44.8]} 23. Bxg6+ {[%clk
0:02:13.1]} 23... fxg6 {[%clk 0:01:43.8]} 24. Qb1 {[%clk 0:02:11.7]} 24... f5
{[%clk 0:01:42]} 25. b4 {[%clk 0:02:08.5]} 25... a6 {[%clk 0:01:40.2]} 26. a4
{[%clk 0:02:07.4]} 26... h5 {[%clk 0:01:28.7]} 27. b5 {[%clk 0:02:06.6]} 27...
axb5 {[%clk 0:01:27.5]} 28. axb5 {[%clk 0:02:06.3]} 28... h4 {[%clk 0:01:28.1]}
29. Nf1 {[%clk 0:02:05.8]} 29... Rg7 {[%clk 0:01:12.3]} 30. bxc6 {[%clk
0:02:04]} 30... bxc6 {[%clk 0:01:13.2]} 31. Qc2 {[%clk 0:01:54.3]} 31... Rc8
{[%clk 0:01:10]} 32. Qe2 {[%clk 0:01:53.3]} 32... c5 {[%clk 0:01:00.6]} 33. dxc5
{[%clk 0:01:51.1]} 33... Rxc5 {[%clk 0:01:01.2]} 34. Rxc5 {[%clk 0:01:45.4]}
34... Bxc5 {[%clk 0:01:02.1]} 35. Qf3 {[%clk 0:01:45.3]} 35... d4 {[%clk
0:00:37.6]} 36. Rd1 {[%clk 0:01:37]} 36... dxe3 {[%clk 0:00:37]} 37. Nxe3 {[%clk
0:01:35.4]} 37... Re7 {[%clk 0:00:34.4]} 38. Qd5 {[%clk 0:00:48.3]} 38... Bxe3
{[%clk 0:00:25.1]} 39. Qxe6 {[%clk 0:00:48.4]} 39... Rxe6 {[%clk 0:00:26]} 40.
fxe3 {[%clk 0:00:47.9]} 40... Rxe3 {[%clk 0:00:26.9]} 41. Kf2 {[%clk 0:00:45.7]}
41... Ra3 {[%clk 0:00:26.4]} 42. Rd4 {[%clk 0:00:40.7]} 42... g5 {[%clk
0:00:12.3]} 43. Rd6 {[%clk 0:00:40.1]} 43... Kg7 {[%clk 0:00:11.5]} 44. h3
{[%clk 0:00:38.8]} 44... g4 {[%clk 0:00:09.7]} 45. hxg4 {[%clk 0:00:37.7]} 45...
fxg4 {[%clk 0:00:09.5]} 46. Rb6 {[%clk 0:00:36.6]} 46... Ra2+ {[%clk 0:00:04.5]}
47. Kf1 {[%clk 0:00:32.6]} 47... g3 {[%clk 0:00:04.5]} 48. Rb4 {[%clk
0:00:26.5]} 48... Ra1+ {[%clk 0:00:04.1]} 49. Ke2 {[%clk 0:00:24.3]} 49... Ra2+
{[%clk 0:00:05]} 50. Kf1 {[%clk 0:00:24.5]} 50... Rf2+ {[%clk 0:00:05.4]} 51.
Ke1 {[%clk 0:00:20.6]} 51... Rxg2 {[%clk 0:00:04.8]} 52. Rxh4 {[%clk 0:00:20.2]}
52... Kg6 {[%clk 0:00:04.9]} 53. Rg4+ {[%clk 0:00:17.7]} 53... Kf5 {[%clk
0:00:05.1]} 54. Rg8 {[%clk 0:00:15.4]} 54... Kf4 {[%clk 0:00:05.2]} 55. Rf8+
{[%clk 0:00:12.5]} 55... Kg4 {[%clk 0:00:05.2]} 56. Rg8+ {[%clk 0:00:12.4]}
56... Kf3 {[%clk 0:00:05.7]} 57. Rf8+ {[%clk 0:00:12.4]} 57... Ke3 {[%clk
0:00:06.3]} 58. Re8+ {[%clk 0:00:12.7]} 58... Kf4 {[%clk 0:00:06.9]} 59. Rf8+
{[%clk 0:00:12.9]} 59... Ke4 {[%clk 0:00:07]} 60. Re8+ {[%clk 0:00:13]} 60...
Kf5 {[%clk 0:00:06.5]} 61. Rf8+ {[%clk 0:00:13]} 61... Kg6 {[%clk 0:00:06]} 62.
Rg8+ {[%clk 0:00:13.1]} 62... Kf7 {[%clk 0:00:04.7]} 63. Rg4 {[%clk 0:00:13]}
63... Kf6 {[%clk 0:00:04.1]} 64. Rg8 {[%clk 0:00:12.6]} 64... Rg1+ {[%clk
0:00:03.3]} 65. Ke2 {[%clk 0:00:12]} 65... Kf5 {[%clk 0:00:04.2]} 66. Rf8+
{[%clk 0:00:09.4]} 66... Kg4 {[%clk 0:00:04.3]} 67. Rh8 {[%clk 0:00:04.3]} 67...
Ra1 {[%clk 0:00:04.2]} 0-1